bitfinex/quotes_SOLUSD_20240915
["timestamp","ask_amount","ask_price","bid_price","bid_amount"]
[1726401313963,13.909,135.97,135.92,7.3571]
[1726401315260,7.3551,135.96,135.92,7.3571]
[1726401315445,7.3551,135.96,135.91,7.3577]
[1726401320057,15.05566507,135.96,135.91,7.3577]
[1726401324276,7.3556,135.95,135.91,7.3577]
[1726401325367,15.05576507,135.96,135.91,7.3577]
[1726401331094,7.3556,135.95,135.91,7.3577]
[1726401332985,7.70056507,135.96,135.9,7.3582]
[1726401332986,7.3561,135.94,135.9,7.3582]
[1726401334158,7.3561,135.94,135.88,0.2529833]
[1726401334367,7.3561,135.94,135.89,7.3587]
[1726401340390,7.3567,135.93,135.89,7.3587]
[1726401344797,15.05989704,135.93,135.89,7.3587]
[1726401347793,7.70319704,135.93,135.89,7.3587]
[1726401347973,7.3562,135.94,135.89,7.3587]
[1726401350096,7.70285505,135.95,135.88,7.6121833]
[1726401350097,7.3569,135.93,135.88,7.6121833]
[1726401363318,7.3562,135.94,135.9,7.3582]
[1726401364904,7.3562,135.94,135.89,7.3587]
[1726401368291,7.7032924,135.93,135.89,7.3587]
[1726401368811,15.0601924,135.93,135.88,7.6122833]
[1726401370718,7.3572,135.92,135.88,7.6122833]
[1726401372718,7.3572,135.92,135.88,0.2529833]
[1726401376926,15.06043499,135.93,135.88,7.6122833]
[1726401377428,15.06043499,135.93,135.89,7.3588]
[1726401377912,7.3567,135.93,135.89,7.3588]
[1726401379411,11.55403483,135.95,135.88,0.2529833]
[1726401379721,7.70347976,135.95,135.92,7.3571]
[1726401380030,7.3547,135.97,135.92,7.3571]
[1726401381317,7.3551,135.96,135.91,7.3577]
[1726401383033,7.3557,135.95,135.91,7.3577]
[1726401383206,7.3557,135.95,135.9,7.3582]
[1726401383517,7.3568,135.93,135.89,7.3587]
[1726401383718,7.3568,135.93,135.88,7.6122833]
[1726401383920,7.3572,135.92,135.89,5.70083241]
[1726401384121,7.3572,135.92,135.88,7.6122833]
[1726401385511,7.3567,135.93,135.88,7.6122833]
[1726401386128,7.3567,135.93,135.89,13.05956726]
[1726401386303,7.3567,135.93,135.89,7.3588]
[1726401387209,7.3562,135.94,135.89,7.3588]
[1726401388131,7.3556,135.95,135.88,0.2529833]
[1726401388329,7.3556,135.95,135.89,5.70039874]
[1726401388529,27.62743907,135.97,135.9,5.70039874]
[1726401388719,23.85055507,135.97,135.91,7.3573]
[1726401389033,7.70160711,135.98,135.92,7.357]
[1726401389446,7.3551,135.96,135.92,7.357]
[1726401389937,7.3551,135.96,135.91,7.3577]
[1726401393637,7.3551,135.96,135.89,7.3585]
[1726401393929,7.70160711,135.98,135.89,7.3585]
[1726401393930,7.356,135.95,135.89,7.3585]
[1726401394133,7.356,135.95,135.9,5.70008376]
[1726401394314,7.356,135.95,135.89,7.3585]
[1726401394510,7.3562,135.94,135.9,5.70009237]
[1726401394725,7.3562,135.94,135.89,7.3585]
[1726401394925,7.3562,135.94,135.9,5.70018247]
[1726401395233,7.3562,135.94,135.89,7.3585]
[1726401395432,7.3562,135.94,135.9,5.70011749]
[1726401395639,7.3562,135.94,135.89,7.3585]
[1726401396342,7.3568,135.93,135.89,7.3585]
[1726401399549,7.3572,135.92,135.88,7.6121833]
[1726401399751,7.3572,135.92,135.88,0.2529833]
[1726401405972,7.3579,135.91,135.88,0.2529833]
[1726401409051,7.3588,135.89,135.88,0.2529833]
[1726401418664,7.3583,135.9,135.88,0.2529833]
[1726401418865,7.3578,135.91,135.88,0.2529833]
[1726401419063,15.06029431,135.93,135.88,0.2529833]
[1726401419276,7.3567,135.93,135.88,0.2529833]
[1726401419488,7.3562,135.94,135.89,7.3587]
[1726401421187,7.3557,135.95,135.9,7.3582]
[1726401424066,31.132484,135.96,135.9,7.3578]
[1726401427688,7.3558,135.95,135.9,7.3578]
[1726401438088,7.3562,135.94,135.9,7.3578]
[1726401445776,7.3562,135.94,135.88,23.1101833]
[1726401446003,7.3568,135.93,135.88,23.1101833]
[1726401446300,7.3573,135.92,135.88,24.2231833]
[1726401450386,7.3573,135.92,135.88,16.8638833]
[1726401450788,13.97835585,135.95,135.88,16.8638833]
[1726401450996,7.3583,135.9,135.88,0.2529833]
[1726401462211,7.70394214,135.91,135.88,0.2529833]
[1726401462386,7.3577,135.92,135.88,0.2529833]
[1726401467503,7.3578,135.91,135.88,0.2529833]
[1726401495024,7.3572,135.92,135.88,7.6123833]
[1726401495219,15.06058685,135.93,135.89,23.1536]
[1726401495421,7.3561,135.94,135.9,7.3583]
[1726401495724,7.3556,135.95,135.9,7.3583]
[1726401495925,7.3556,135.95,135.9,8.82958197]
[1726401497215,7.3556,135.95,135.9,7.3583]
[1726401506741,23.776884,135.96,135.89,15.7948]
[1726401507129,20.12549,135.95,135.89,15.7948]
[1726401507745,7.3573,135.92,135.89,15.7948]
[1726401508126,20.0,135.95,135.89,15.7948]
[1726401508337,20.0,135.95,135.89,23.1536]
[1726401508338,7.3568,135.93,135.89,23.1536]
[1726401518444,7.3562,135.94,135.89,23.1536]
[1726401527553,20.0,135.95,135.89,23.1536]
[1726401527554,7.3567,135.93,135.89,23.1536]
[1726401531703,7.3567,135.93,135.89,15.7948]
[1726401531987,7.3578,135.91,135.89,15.7948]
[1726401533669,7.3574,135.92,135.89,15.7948]
[1726401539287,7.3568,135.93,135.89,23.1536]
[1726401539888,7.3556,135.95,135.9,7.358]
[1726401540668,7.3556,135.95,135.9,8.82849747]
[1726401541687,7.3556,135.95,135.9,7.358]
[1726401548367,23.776884,135.95,135.89,29.2723]
[1726401548687,27.62743907,135.95,135.89,23.1536]
[1726401549274,7.3569,135.93,135.89,23.1536]
[1726401551071,7.3569,135.93,135.89,15.7948]
[1726401552274,7.3569,135.93,135.89,23.1536]
[1726401552996,7.3563,135.94,135.89,23.1536]
[1726401561106,18.91691982,135.95,135.9,7.3578]
[1726401561286,15.05778576,135.95,135.9,7.3578]
[1726401561490,7.3557,135.95,135.9,7.3578]
[1726401564007,7.3563,135.94,135.9,7.3578]
[1726401565206,7.3563,135.94,135.89,15.7948]
[1726401565513,7.3563,135.94,135.89,23.1536]
[1726401573090,7.3563,135.94,135.9,7.3583]
[1726401573495,3.85913406,135.96,135.89,15.7948]
[1726401573496,7.3557,135.95,135.91,7.3577]
[1726401574522,31.21433406,135.96,135.91,7.3577]
[1726401574816,27.3552,135.96,135.91,7.3577]
[1726401576020,31.21433406,135.96,135.91,7.3577]
[1726401576693,27.3552,135.96,135.91,7.3577]
[1726401576892,7.3557,135.95,135.91,7.3577]
[1726401582018,7.3557,135.95,135.9,7.3582]
[1726401583916,7.3563,135.94,135.89,23.1536]
[1726401585927,7.3557,135.95,135.9,14.53056074]
[1726401586102,7.3557,135.95,135.9,7.3583]
[1726401589530,7.3551,135.96,135.89,22.0444]
[1726401589734,7.3551,135.96,135.9,5.70049765]
[1726401589902,7.3551,135.96,135.89,22.0444]
[1726401590228,7.3551,135.96,135.9,5.70049028]
[1726401590431,7.3551,135.96,135.91,7.3577]
[1726401591534,7.3545,135.97,135.93,7.3566]
[1726401592234,7.3545,135.97,135.92,23.1606]
[1726401599645,7.3552,135.96,135.92,15.8035]
[1726401599816,7.3557,135.95,135.9,7.3582]
[1726401601738,7.3562,135.94,135.89,7.3588]
[1726401602037,7.3567,135.93,135.89,7.3588]
[1726401602335,7.3567,135.93,135.88,16.0564833]
[1726401602734,11.56042906,135.96,135.88,0.2529833]
[1726401602735,44.027864,135.95,135.88,0.2529833]
[1726401603042,20.28052406,135.94,135.88,0.2529833]
[1726401603327,50.182964,135.93,135.88,0.2529833]
[1726401603527,7.3582,135.91,135.88,0.2529833]
[1726401604229,50.057474,135.93,135.88,0.2529833]
[1726401604230,7.3585,135.9,135.88,0.2529833]
[1726401605036,53.91660806,135.93,135.88,0.2529833]
[1726401605037,7.3588,135.89,135.88,0.2529833]
[1726401605330,51.386664,135.89,135.88,0.2529833]
[1726401605636,51.512154,135.89,135.88,0.2529833]
[1726401607435,92.404354,135.89,135.88,8.33e-05]
[1726401607642,146.26348806,135.89,135.88,8.33e-05]
[1726401608315,142.404354,135.89,135.88,8.33e-05]
[1726401608922,146.26348806,135.89,135.88,8.33e-05]
[1726401610419,142.404354,135.89,135.88,8.33e-05]
[1726401610722,150.39161554,135.89,135.88,8.33e-05]
[1726401610933,150.39161554,135.89,135.84,0.2530389]
[1726401610934,51.388864,135.85,135.84,0.2530389]
[1726401611112,51.514354,135.85,135.84,0.2530389]
[1726401611732,57.810654,135.85,135.84,0.2530389]
[1726401612516,65.51869024,135.85,135.84,0.2530389]
[1726401613645,66.80332852,135.85,135.84,0.2530389]
[1726401614628,133.00202852,135.85,135.84,0.2530389]
[1726401614947,133.00202852,135.85,135.84,3.89e-05]
[1726401615245,143.00202852,135.85,135.84,3.89e-05]
[1726401615622,143.00202852,135.85,135.8,0.2530389]
[1726401615623,51.391064,135.81,135.8,0.2530389]
[1726401615934,51.516554,135.81,135.8,0.2530389]
[1726401622829,59.21854346,135.81,135.8,0.2530389]
[1726401625151,7.70198946,135.81,135.8,0.2530389]
[1726401625332,7.3627,135.82,135.8,0.2530389]
[1726401625733,15.05900959,135.82,135.8,0.2530389]
[1726401627159,7.69630959,135.82,135.8,0.2530389]
[1726401627347,6.2963,135.85,135.8,0.2530389]
[1726401627553,7.3621,135.83,135.8,0.2530389]
[1726401627760,15.0581846,135.83,135.8,0.2530389]
[1726401628332,7.6960846,135.83,135.8,0.2530389]
[1726401628853,7.6960846,135.83,135.8,30.2530389]
[1726401630154,15.0583846,135.83,135.8,30.2530389]
[1726401630336,7.3626,135.82,135.8,30.2530389]
[1726401631059,7.3632,135.81,135.8,30.2530389]
[1726401631655,7.3632,135.81,135.8,0.2530389]
[1726401632048,27.3632,135.81,135.8,0.2530389]
[1726401632747,51.516554,135.81,135.8,0.2530389]
[1726401635656,51.140084,135.81,135.8,0.2530389]
[1726401637356,51.265574,135.81,135.8,0.2530389]
[1726401637942,58.95873196,135.81,135.8,0.2530389]
[1726401640245,59.20971196,135.81,135.8,0.2530389]
[1726401642162,51.516554,135.81,135.8,0.2530389]
[1726401642861,51.265574,135.81,135.8,0.2530389]
[1726401643258,27.3632,135.81,135.8,0.2530389]
[1726401644760,51.516554,135.81,135.8,0.2530389]
[1726401647476,101.516554,135.81,135.8,3.89e-05]
[1726401647774,51.516554,135.81,135.8,3.89e-05]
[1726401650952,101.516554,135.81,135.8,3.89e-05]
[1726401653453,51.516554,135.81,135.8,3.89e-05]
[1726401654654,27.48869,135.81,135.8,3.89e-05]
[1726401656056,51.391064,135.81,135.8,3.89e-05]
[1726401656260,51.516554,135.81,135.8,3.89e-05]
[1726401661387,7.3632,135.81,135.8,3.89e-05]
[1726401661589,8.9713062,135.82,135.8,3.89e-05]
[1726401661789,18.4033,135.85,135.8,3.89e-05]
[1726401661790,3.81238349,135.85,135.8,3.89e-05]
[1726401661973,7.3617,135.84,135.8,3.89e-05]
[1726401662483,7.69936989,135.86,135.8,7.3635389]
[1726401663077,3.81238349,135.87,135.8,7.3635389]
[1726401663389,7.361,135.85,135.8,7.3635389]
[1726401669494,51.388264,135.87,135.82,23.7053]
[1726401669719,7.3605,135.86,135.82,16.3427]
[1726401669898,20.0,135.85,135.82,16.3427]
[1726401670493,7.70063877,135.88,135.82,16.3427]
[1726401671369,7.3606,135.86,135.82,16.3427]
[1726401672297,7.3611,135.85,135.82,16.3427]
[1726401673089,7.3617,135.84,135.82,16.3427]
[1726401675809,7.69810018,135.85,135.82,16.3427]
[1726401675988,7.3606,135.86,135.82,16.3427]
[1726401676303,35.05587383,135.86,135.82,16.3427]
[1726401676480,7.3611,135.85,135.82,16.3427]
[1726401683017,7.3611,135.85,135.8,7.3636389]
[1726401684081,7.3618,135.84,135.8,3.89e-05]
[1726401686493,7.3622,135.83,135.8,3.89e-05]
[1726401687098,7.3632,135.81,135.8,3.89e-05]
[1726401688386,51.265574,135.81,135.8,3.89e-05]
[1726401689107,51.391064,135.81,135.8,3.89e-05]
[1726401689317,51.516554,135.81,135.8,3.89e-05]
[1726401697029,59.21337443,135.81,135.8,3.89e-05]
[1726401704819,35.06002043,135.81,135.8,3.89e-05]
[1726401705026,27.3632,135.81,135.8,3.89e-05]
[1726401705839,7.3627,135.82,135.8,3.89e-05]
[1726401707252,7.3632,135.81,135.8,3.89e-05]
[1726401707815,31.140084,135.81,135.8,3.89e-05]
[1726401710941,51.140084,135.81,135.8,3.89e-05]
[1726401715338,20.0,135.81,135.8,3.89e-05]
[1726401715542,7.70137872,135.83,135.8,3.89e-05]
[1726401715724,7.362,135.84,135.8,3.89e-05]
[1726401715925,27.3623,135.83,135.8,3.89e-05]
[1726401724844,7.3628,135.82,135.8,3.89e-05]
[1726401726524,7.3632,135.81,135.8,3.89e-05]
[1726401727835,31.140084,135.81,135.8,3.89e-05]
[1726401728032,51.391064,135.81,135.8,3.89e-05]
[1726401728236,51.516554,135.81,135.8,3.89e-05]
[1726401732329,51.140084,135.81,135.8,3.89e-05]
[1726401737562,51.391064,135.81,135.8,3.89e-05]
[1726401737771,51.516554,135.81,135.8,3.89e-05]
[1726401744748,51.391064,135.81,135.8,3.89e-05]
[1726401744950,51.140084,135.81,135.8,3.89e-05]
[1726401747060,15.06444852,135.82,135.8,3.89e-05]
[1726401747455,7.3621,135.83,135.8,3.89e-05]
[1726401747648,7.69756407,135.83,135.8,3.89e-05]
[1726401747852,7.69756407,135.83,135.8,7.3636389]
[1726401748048,7.3617,135.84,135.8,7.3636389]
[1726401748246,7.3617,135.84,135.8,23.3319389]
[1726401751979,20.0,135.84,135.8,23.3319389]
[1726401753573,27.3617,135.84,135.8,15.9683389]
[1726401753974,7.3621,135.83,135.8,15.9683389]
[1726401754350,20.0,135.84,135.8,15.9683389]
[1726401755585,7.70222281,135.85,135.81,7.3631]
[1726401755750,7.3606,135.86,135.81,7.3631]
[1726401756159,15.06501353,135.86,135.81,7.3631]
[1726401757874,15.06501353,135.86,135.82,7.3625]
[1726401758079,20.0,135.86,135.82,7.3625]
[1726401759601,7.3605,135.86,135.81,7.3631]
[1726401769266,15.0598067,135.86,135.81,7.3631]
[1726401769565,7.3605,135.86,135.81,7.3631]
[1726401769882,15.05982765,135.86,135.81,7.3631]
[1726401770783,7.3611,135.85,135.8,23.3319389]
[1726401771569,7.3625,135.83,135.8,15.9683389]
[1726401772488,44.027864,135.85,135.8,3.89e-05]
[1726401772795,0.12549,135.84,135.8,3.89e-05]
[1726401773275,7.3632,135.81,135.8,3.89e-05]
[1726401778289,7.3627,135.82,135.8,3.89e-05]
[1726401779792,7.3632,135.81,135.8,3.89e-05]
[1726401779981,27.3632,135.81,135.8,3.89e-05]
[1726401788493,51.140084,135.81,135.8,3.89e-05]
[1726401789886,51.516554,135.81,135.8,3.89e-05]
[1726401797008,54.4660821,135.81,135.8,3.89e-05]
[1726401799710,54.4660821,135.81,135.76,15.8110389]
[1726401799711,7.3652,135.78,135.76,15.8110389]
[1726401799920,20.0,135.77,135.76,15.8110389]
[1726401802720,20.0,135.77,135.76,8.73215691]
[1726401804399,20.0,135.77,135.76,1.35415691]
[1726401806719,7.3638,135.8,135.76,1.35415691]
[1726401806922,20.0,135.79,135.76,1.35415691]
[1726401807416,20.0,135.79,135.76,8.71965691]
[1726401807714,7.3621,135.83,135.76,15.33485691]
[1726401808296,7.3621,135.83,135.76,7.96935691]
[1726401808916,27.3627,135.82,135.76,7.96935691]
[1726401811730,20.0,135.8,135.76,7.96935691]
[1726401813325,7.70106223,135.84,135.76,1.35415691]
[1726401813326,20.0,135.78,135.76,1.35415691]
[1726401817311,20.0,135.78,135.72,13.9832]
[1726401817312,20.0,135.76,135.72,6.6152]
[1726401817923,20.0,135.77,135.72,6.6152]
[1726401839537,20.0,135.77,135.73,5.8628061]
[1726401839848,20.0,135.77,135.74,5.8628061]
[1726401840050,20.0,135.77,135.72,6.6152]
[1726401840256,20.0,135.77,135.73,5.86277408]
[1726401840454,20.0,135.77,135.74,5.86277512]
[1726401840655,20.0,135.77,135.72,6.6152]
[1726401841361,7.3655,135.77,135.72,6.6152]
[1726401841561,20.0,135.78,135.71,16.8793389]
[1726401842244,20.0,135.74,135.71,16.8793389]
[1726401849270,20.0,135.75,135.71,16.8793389]
[1726401850852,20.0,135.76,135.72,1.4734257]
[1726401853868,20.0,135.75,135.71,16.8793389]
[1726401854253,27.3666,135.75,135.71,16.8793389]
[1726401855364,7.3666,135.75,135.71,16.8793389]
[1726401856160,7.3671,135.74,135.71,16.8793389]
[1726401856360,7.3665,135.75,135.71,16.8793389]
[1726401857385,20.0,135.74,135.71,16.8793389]
[1726401864456,20.0,135.73,135.71,16.8793389]
[1726401868675,20.0,135.73,135.71,0.2530389]
[1726401869060,7.3677,135.73,135.71,0.2530389]
[1726401869378,20.0,135.72,135.71,0.2530389]
[1726401884177,7.366,135.76,135.71,0.2530389]
[1726401885400,20.0,135.75,135.71,0.2530389]
[1726401899602,7.3665,135.75,135.71,0.2530389]
[1726401899914,20.0,135.74,135.71,0.2530389]
[1726401900789,20.0,135.74,135.72,5.86325718]
[1726401900984,7.3676,135.73,135.71,0.2530389]
[1726401901186,20.0,135.72,135.71,0.2530389]
[1726401901397,20.0,135.72,135.71,6.11699642]
[1726401901685,20.0,135.72,135.71,6.11721165]
[1726401902095,20.0,135.72,135.71,6.11721233]
[1726401902901,20.0,135.72,135.67,2.91435123]
[1726401903099,20.0,135.72,135.68,4.31453517]
[1726401903309,20.0,135.72,135.69,4.18904517]
[1726401903614,20.0,135.72,135.68,0.12549]
[1726401903816,20.0,135.72,135.69,4.18904301]
[1726401904120,20.0,135.72,135.68,0.12549]
[1726401904420,20.0,135.72,135.69,4.18901808]
[1726401904597,27.3671,135.74,135.68,0.12549]
[1726401904799,27.3671,135.74,135.69,4.18901808]
[1726401905122,27.3671,135.74,135.68,0.12549]
[1726401905614,27.3671,135.74,135.69,4.18869183]
[1726401905916,27.3671,135.74,135.7,4.18869183]
[1726401906093,27.3671,135.74,135.68,0.12549]
[1726401906293,27.3671,135.74,135.69,4.18858383]
[1726401906493,27.3671,135.74,135.68,0.12549]
[1726401906494,27.3671,135.74,135.7,4.18858383]
[1726401906719,27.3671,135.74,135.68,0.12549]
[1726401906919,27.3671,135.74,135.69,4.18860425]
[1726401907115,27.3671,135.74,135.7,4.18860425]
[1726401907326,27.3671,135.74,135.68,0.12549]
[1726401907615,27.3671,135.74,135.69,4.18860263]
[1726401907818,27.3671,135.74,135.7,4.18860263]
[1726401908027,27.3671,135.74,135.68,0.12549]
[1726401908196,27.3671,135.74,135.69,4.18869809]
[1726401908398,20.0,135.74,135.7,4.31418809]
[1726401908598,20.0,135.74,135.69,0.25098]
[1726401908811,20.0,135.74,135.7,0.12549]
[1726401909322,20.0,135.74,135.7,4.31409584]
[1726401909504,20.0,135.74,135.7,0.12549]
[1726401909817,7.366,135.76,135.7,0.12549]
[1726401910817,15.3135389,135.78,135.7,0.12549]
[1726401910818,22.6784389,135.78,135.71,7.61918]
[1726401911030,22.6784389,135.78,135.72,0.12549]
[1726401911518,7.3656,135.77,135.72,0.12549]
[1726401911719,7.3659,135.76,135.72,0.12549]
[1726401912026,20.0,135.75,135.7,0.25098]
[1726401912220,7.3659,135.76,135.71,0.12549]
[1726401913494,20.0,135.75,135.71,0.12549]
[1726401914917,20.0,135.75,135.72,5.77992431]
[1726401915214,20.0,135.75,135.73,5.77992431]
[1726401915404,20.0,135.75,135.71,0.12549]
[1726401915730,20.0,135.75,135.72,5.77992431]
[1726401915930,20.0,135.75,135.71,0.12549]
[1726401916131,20.0,135.75,135.72,5.77992328]
[1726401916306,20.0,135.75,135.71,0.12549]
[1726401916624,27.3654,135.77,135.71,0.12549]
[1726401917626,20.0,135.77,135.71,16.74508428]
[1726401917924,20.0,135.77,135.72,0.12549]
[1726401918308,20.2530389,135.78,135.72,31.395864]
[1726401918499,20.2530389,135.78,135.73,0.25098]
[1726401918723,20.2530389,135.78,135.74,0.12549]
[1726401920515,0.2530389,135.78,135.74,1.59774497]
[1726401920718,0.2530389,135.78,135.75,0.25098]
[1726401920926,0.2530389,135.78,135.76,1.59826834]
[1726401921207,0.2530389,135.78,135.75,0.12549]
[1726401921419,0.2530389,135.78,135.76,0.12549]
[1726401922920,0.2530389,135.78,135.76,1.59698966]
[1726401923121,0.2530389,135.78,135.76,0.12549]
[1726401924103,0.2530389,135.78,135.75,0.12549]
[1726401924308,0.2530389,135.78,135.74,0.37647]
[1726401924807,0.2530389,135.78,135.74,0.12549]
[1726401931219,20.0,135.76,135.67,15.5637]
[1726401931414,7.3675,135.73,135.67,15.5637]
[1726401931631,20.0,135.72,135.67,15.5637]
[1726401932115,27.367,135.74,135.67,15.5637]
[1726401933821,7.3676,135.73,135.67,15.5637]
[1726401934030,20.0,135.72,135.67,15.5637]
[1726401935250,20.0,135.72,135.68,0.12549]
[1726401935425,20.0,135.72,135.68,0.25098]
[1726401938241,20.0,135.74,135.63,15.8167389]
[1726401938420,20.0,135.7,135.64,7.49779]
[1726401939319,7.3681,135.72,135.65,7.3716]
[1726401939534,20.0,135.71,135.66,0.12549]
[1726401939739,20.0,135.71,135.66,0.25098]
[1726401941438,7.3676,135.73,135.66,0.25098]
[1726401941939,20.0,135.72,135.66,7.62228]
[1726401943935,27.3682,135.72,135.66,0.25098]
[1726401944136,27.3682,135.72,135.66,0.12549]
[1726401944345,26.8682,135.72,135.66,0.12549]
[1726401950746,20.0,135.74,135.69,7.3692]
[1726401950924,27.367,135.74,135.69,0.12549]
[1726401954641,7.3675,135.73,135.68,0.12549]
[1726401954847,20.0,135.72,135.68,0.12549]
[1726401960532,20.0,135.71,135.68,0.12549]
[1726401960936,20.0,135.71,135.67,0.12549]
[1726401961235,20.0,135.71,135.66,7.62228]
[1726401966732,20.0,135.71,135.67,0.12549]
[1726401968962,20.0,135.71,135.67,0.25098]
[1726401971165,20.0,135.71,135.67,4.43981182]
[1726401972162,20.0,135.71,135.67,0.25098]
[1726401973366,20.0,135.72,135.67,0.25098]
[1726401975046,20.0,135.72,135.68,4.18880755]
[1726401975566,27.3671,135.74,135.69,0.25098]
[1726401975757,20.0,135.73,135.69,0.25098]
[1726401988073,20.0,135.73,135.69,0.12549]
[1726401988272,27.3675,135.73,135.68,0.37647]
[1726401994281,27.3675,135.73,135.68,0.25098]
[1726402009606,7.3682,135.72,135.68,0.25098]
[1726402009892,20.0,135.77,135.68,0.25098]
[1726402010891,20.0,135.77,135.69,6.70185741]
[1726402011094,20.0,135.77,135.68,0.25098]
[1726402011396,20.0,135.72,135.69,6.70181988]
[1726402011604,20.0,135.72,135.68,0.25098]
[1726402011792,20.0,135.72,135.69,6.70182636]
[1726402011978,20.0,135.72,135.68,0.25098]
[1726402021997,27.366,135.76,135.7,7.369]
[1726402022181,7.367,135.74,135.69,7.49509]
[1726402022381,20.0,135.73,135.7,0.25098]
[1726402023294,26.15851558,135.78,135.71,0.12549]
[1726402023295,20.0,135.77,135.71,0.12549]
[1726402023492,7.3655,135.77,135.72,0.12549]
[1726402023690,7.3659,135.76,135.72,0.12549]
[1726402023877,7.3659,135.76,135.72,0.25098]
[1726402024080,7.3654,135.77,135.72,0.25098]
[1726402024896,20.0,135.76,135.72,0.25098]
[1726402025796,27.3659,135.76,135.71,15.49629]
[1726402026002,7.3665,135.75,135.71,15.3708]
[1726402026211,20.0,135.74,135.71,15.3708]
[1726402028391,20.0,135.75,135.72,0.12549]
[1726402029816,20.0,135.76,135.72,0.37647]
[1726402030401,27.3663,135.76,135.71,15.3708]
[1726402030600,27.3663,135.76,135.72,0.12549]
[1726402030799,27.3663,135.76,135.72,0.25098]
[1726402031489,20.0,135.76,135.72,0.25098]
[1726402032213,20.0,135.76,135.73,0.12549]
[1726402032517,20.0,135.77,135.73,0.25098]
[1726402032690,20.0,135.77,135.74,0.12549]
[1726402034505,7.3654,135.77,135.74,0.12549]
[1726402034908,20.0,135.76,135.74,0.12549]
[1726402035411,20.0,135.76,135.71,22.7394]
[1726402035618,20.0,135.76,135.72,4.56395161]
[1726402035914,20.0,135.76,135.72,0.37647]
[1726402036417,20.0,135.76,135.73,5.77943072]
[1726402036622,20.0,135.76,135.72,0.37647]
[1726402036990,20.0,135.76,135.73,5.7794008]
[1726402037194,20.0,135.76,135.72,0.37647]
[1726402037395,20.0,135.76,135.73,5.77940224]
[1726402037610,20.0,135.76,135.72,0.37647]
[1726402037923,20.0,135.76,135.73,5.77940121]
[1726402038098,20.0,135.76,135.72,0.37647]
[1726402038297,20.0,135.76,135.73,5.77940224]
[1726402038599,20.0,135.76,135.74,5.77934626]
[1726402038814,20.0,135.76,135.72,0.37647]
[1726402039113,20.0,135.76,135.73,5.77933672]
[1726402039308,20.0,135.76,135.74,5.77933672]
[1726402039514,20.0,135.76,135.72,0.37647]
[1726402039813,20.0,135.76,135.73,5.7794008]
[1726402039999,20.0,135.76,135.72,0.37647]
[1726402040397,20.0,135.76,135.73,5.7794008]
[1726402040698,20.0,135.76,135.72,0.37647]
[1726402040910,20.0,135.76,135.73,5.77939977]
[1726402041109,20.0,135.76,135.72,0.37647]
[1726402041318,20.0,135.76,135.73,5.77939977]
[1726402041517,20.0,135.76,135.72,0.37647]
[1726402042514,20.0,135.76,135.72,31.521354]
[1726402042724,20.0,135.77,135.72,31.521354]
[1726402043023,7.3654,135.77,135.72,31.521354]
[1726402043417,20.0,135.76,135.72,31.521354]
[1726402046828,20.0,135.76,135.72,0.37647]
[1726402047404,20.0,135.75,135.72,0.37647]
[1726402050032,20.0,135.75,135.72,0.12549]
[1726402050033,27.3665,135.75,135.72,0.12549]
[1726402053539,27.3665,135.75,135.71,0.37647]
[1726402053709,27.3665,135.75,135.72,4.1876098]
[1726402054029,27.3665,135.75,135.71,0.37647]
[1726402054210,27.3665,135.75,135.72,4.18750496]
[1726402054412,27.3665,135.75,135.71,0.37647]
[1726402054623,27.3665,135.75,135.72,4.18750415]
[1726402054929,27.3665,135.75,135.71,0.37647]
[1726402055228,27.3665,135.75,135.72,4.18761677]
[1726402055533,27.3665,135.75,135.71,0.37647]
[1726402055707,27.3665,135.75,135.72,4.18755185]
[1726402056029,27.3665,135.75,135.71,0.37647]
[1726402056234,27.3665,135.75,135.72,4.18752841]
[1726402056531,27.3665,135.75,135.71,0.37647]
[1726402056716,27.3665,135.75,135.72,4.18752841]